bitfinex/quotes_ETHUSD_20250216
["timestamp","ask_amount","ask_price","bid_price","bid_amount"]
[1739738330531,0.07560772,2679.5,2679.2,3.73244]
[1739738331941,0.07560772,2679.5,2679.3,3.73221]
[1739738332578,4.54299,2679.8,2679.3,3.73221]
[1739738332880,8.2747,2679.8,2679.3,3.73221]
[1739738333181,0.07564855,2679.7,2679.3,3.73221]
[1739738333383,3.80742855,2679.7,2679.0,4.51151]
[1739738333584,3.73184,2679.7,2679.2,3.73244]
[1739738333876,0.07563257,2679.6,2679.2,3.73244]
[1739738334969,0.07563257,2679.6,2679.3,3.73228]
[1739738335170,0.07563257,2679.6,2679.2,3.73244]
[1739738336551,3.80756257,2679.6,2679.1,0.451151]
[1739738336882,3.80756257,2679.6,2679.1,3.73258]
[1739738336883,0.8174,2679.5,2679.1,3.73258]
[1739738337069,0.89304325,2679.5,2679.1,3.73258]
[1739738337378,4.62514325,2679.5,2679.0,3.7326]
[1739738337583,4.62514325,2679.5,2679.1,3.73253]
[1739738337899,0.89304325,2679.5,2679.1,3.73259]
[1739738338100,0.89304325,2679.5,2679.2,4.478859]
[1739738338911,0.89304325,2679.5,2679.2,3.73234]
[1739738339047,0.89304325,2679.5,2679.3,3.73229]
[1739738339569,0.89304325,2679.5,2679.2,3.73234]
[1739738340150,0.89304325,2679.5,2679.1,3.73258]
[1739738340354,4.62508325,2679.5,2679.0,3.73272]
[1739738340596,4.62508325,2679.5,2679.1,3.73257]
[1739738342684,4.62508325,2679.5,2679.0,3.73272]
[1739738343090,3.73218,2679.4,2679.0,3.73272]
[1739738343298,3.80510701,2679.4,2679.0,3.73272]
[1739738344895,3.73231,2679.3,2678.8,3.73292]
[1739738345050,0.8174,2679.1,2678.7,3.73314]
[1739738345484,0.07285926,2679.0,2678.7,3.73314]
[1739738345689,0.07285926,2679.0,2678.8,3.733]
[1739738345867,0.07285926,2679.0,2678.9,3.73287]
[1739738346895,0.07285926,2679.0,2678.6,4.479855]
[1739738347094,0.07285926,2679.0,2678.6,3.73318]
[1739738347284,0.07285926,2679.0,2678.7,3.73312]
[1739738348399,0.07285926,2679.0,2678.8,3.73299]
[1739738348702,0.07285926,2679.0,2678.9,3.73287]
[1739738348862,0.8174,2679.3,2678.9,3.73287]
[1739738349196,0.06751508,2679.0,2678.8,7.46592]
[1739738349499,0.06749909,2678.9,2678.8,3.73293]
[1739738349665,4.54973,2679.3,2678.7,3.73313]
[1739738349866,0.8174,2679.3,2678.9,3.73285]
[1739738350062,0.8174,2679.3,2678.9,3.73279]
[1739738350266,0.8174,2679.3,2679.0,3.73272]
[1739738350999,0.8174,2679.3,2679.0,3.7327]
[1739738351694,0.8174,2679.3,2678.9,3.73279]
[1739738351995,4.19199852,2679.3,2678.8,3.73298]
[1739738352294,4.54146,2679.2,2678.7,3.73313]
[1739738352494,0.809,2679.2,2678.8,3.73298]
[1739738353395,0.809,2679.2,2678.9,3.7328]
[1739738353715,0.809,2679.2,2678.9,3.73276]
[1739738353878,0.809,2679.2,2678.7,0.8328]
[1739738354197,0.809,2679.2,2679.0,3.73266]
[1739738355600,0.809,2679.2,2678.8,3.73293]
[1739738355803,0.809,2679.2,2678.9,3.7328]
[1739738356169,0.809,2679.2,2678.9,3.73274]
[1739738356902,0.809,2679.2,2678.8,4.189503]
[1739738357100,0.809,2679.2,2678.8,3.73293]
[1739738357401,0.06751781,2679.1,2678.8,3.73293]
[1739738357966,0.06751781,2679.1,2678.8,3.73291]
[1739738358403,0.06751781,2679.1,2678.9,3.73276]
[1739738358597,0.06751781,2679.1,2678.8,3.73291]
[1739738358767,0.06751781,2679.1,2678.9,3.73277]
[1739738359578,0.06751781,2679.1,2679.0,3.73273]
[1739738360180,0.809,2679.4,2679.0,3.73273]
[1739738360367,0.06685472,2679.1,2679.0,3.73273]
[1739738360567,0.809,2679.4,2679.0,3.73273]
[1739738361085,0.06688668,2679.3,2679.0,3.73273]
[1739738361291,0.06688668,2679.3,2679.0,3.73259]
[1739738361830,0.06688668,2679.3,2679.1,0.03732418]
[1739738362103,0.06688668,2679.3,2679.1,4.56528]
[1739738362293,4.54091,2679.6,2679.1,3.73248]
[1739738362480,0.06691066,2679.2,2679.1,3.73248]
[1739738362682,4.54091,2679.6,2679.1,3.73248]
[1739738362885,0.06691066,2679.2,2679.1,3.73248]
[1739738363194,4.54091,2679.6,2679.1,4.562287]
[1739738363393,0.06691066,2679.2,2679.1,4.562287]
[1739738363589,3.73206,2679.5,2679.1,0.829807]
[1739738363910,0.06694262,2679.4,2679.0,3.73273]
[1739738366001,3.79913262,2679.4,2678.9,4.56559]
[1739738366180,0.06694262,2679.4,2679.0,3.73265]
[1739738366584,3.7321,2679.5,2679.0,3.73265]
[1739738366909,0.06694262,2679.4,2679.0,3.73265]
[1739738367079,0.7589,2679.3,2679.0,0.8671531]
[1739738367267,4.55820664,2679.3,2678.8,4.106301]
[1739738367976,0.7589,2679.2,2678.8,4.106301]
[1739738368375,3.77925588,2679.1,2678.6,3.73328]
[1739738368574,3.79950357,2679.1,2678.6,3.73328]
[1739738369804,3.73275,2679.0,2678.5,3.73334]
[1739738370131,0.06687161,2678.9,2678.5,3.73334]
[1739738370334,0.8015,2678.8,2678.5,5.1788713]
[1739738370606,0.86835563,2678.8,2678.5,3.73334]
[1739738370985,0.06685563,2678.8,2678.5,3.73334]
[1739738371177,0.06685563,2678.8,2678.6,3.73329]
[1739738371377,0.8015,2679.0,2678.6,3.73329]
[1739738371607,0.06669304,2678.7,2678.6,3.73329]
[1739738371809,0.8015,2679.0,2678.6,3.73329]
[1739738372012,0.06669304,2678.7,2678.6,5.259553]
[1739738372187,0.8015,2679.0,2678.7,3.73314]
[1739738372702,0.8015,2679.0,2678.8,3.73297]
[1739738372880,0.8015,2679.0,2678.7,3.73314]
[1739738373415,0.8015,2679.0,2678.8,3.73298]
[1739738373610,0.8015,2679.0,2678.7,3.73305]
[1739738373907,0.8015,2679.0,2678.8,3.73288]
[1739738374311,0.8015,2679.0,2678.7,3.73305]
[1739738374681,0.8015,2679.0,2678.6,3.73328]
[1739738374882,4.53425,2679.0,2678.5,3.73333]
[1739738375193,0.8015,2679.0,2678.5,7.46666]
[1739738375404,4.53426,2679.0,2678.5,3.73333]
[1739738375800,4.53426,2679.0,2678.5,7.46669]
[1739738376318,4.53426,2679.0,2678.5,3.73333]
[1739738377517,4.53426,2679.0,2678.6,3.73329]
[1739738378215,0.8015,2679.0,2678.6,3.73329]
[1739738381016,0.8015,2679.0,2678.3,0.92788916]
[1739738381184,0.8015,2679.0,2678.4,3.73351]
[1739738381615,3.73297,2678.9,2678.4,3.73351]
[1739738381809,0.8063,2678.8,2678.4,3.73351]
[1739738382008,0.8063,2678.7,2678.4,1.21747392]
[1739738382920,0.8063,2678.7,2678.4,4.95103392]
[1739738383600,0.8063,2678.7,2678.4,3.73356]
[1739738383917,0.8063,2678.7,2678.3,0.92788916]
[1739738384126,0.8063,2678.7,2678.3,4.66148916]
[1739738385323,0.8063,2678.7,2678.4,3.73348]
[1739738387419,0.06184584,2678.6,2678.4,3.73348]
[1739738387619,0.06184584,2678.6,2678.4,4.87298692]
[1739738388025,0.06184584,2678.6,2678.5,3.73343]
[1739738388215,0.8063,2678.7,2678.5,3.73343]
[1739738388415,0.06159841,2678.6,2678.5,3.73343]
[1739738388899,0.8063,2678.7,2678.4,5.67468692]
[1739738389097,0.8063,2678.7,2678.5,3.73342]
[1739738389297,0.06159841,2678.6,2678.5,3.73342]
[1739738390127,0.8063,2678.7,2678.5,3.73342]
[1739738390432,0.06159841,2678.6,2678.5,3.73342]
[1739738390643,0.06159841,2678.6,2678.5,4.67423069]
[1739738390792,0.06159841,2678.6,2678.5,4.71156256]
[1739738390993,0.8063,2679.0,2678.7,3.73312]
[1739738391220,0.8063,2679.0,2678.5,4.67423069]
[1739738391423,0.06164637,2678.9,2678.7,3.73313]
[1739738392424,0.06164637,2678.9,2678.6,3.73329]
[1739738394017,0.06164637,2678.9,2678.6,3.77061847]
[1739738394200,0.06164637,2678.9,2678.5,3.73342]
[1739738394534,0.06164637,2678.9,2678.5,4.560294]
[1739738394834,0.06164637,2678.9,2678.5,4.560224]
[1739738395697,3.79457637,2678.9,2678.5,4.560224]
[1739738396313,3.79457637,2678.9,2678.5,3.73335]
[1739738397146,0.7699,2678.7,2678.3,3.73364]
[1739738397498,0.06156997,2678.6,2678.3,3.73364]
[1739738400155,0.06156997,2678.6,2678.2,3.73383]
[1739738401009,0.06156997,2678.6,2678.3,3.73371]
[1739738401243,0.06156997,2678.6,2678.4,0.746754]
[1739738402043,0.06156997,2678.6,2677.9,9.81703387]
[1739738402256,0.7699,2678.4,2678.0,3.73401]
[1739738402653,0.06113547,2678.3,2678.0,3.73401]
[1739738404790,0.06113547,2678.3,2677.9,3.73425]
[1739738407250,0.06113547,2678.3,2677.9,3.73415]
[1739738407450,0.06113547,2678.3,2677.9,4.563445]
[1739738411166,0.06113547,2678.3,2678.2,3.73385]
[1739738411329,0.06113547,2678.3,2678.2,4.49335]
[1739738411532,0.8331,2678.7,2678.2,0.7595]
[1739738411731,0.05995208,2678.3,2678.2,5.04335]
[1739738411960,0.8331,2679.4,2678.6,0.7595]
[1739738412310,0.8331,2679.4,2679.1,3.73251]
[1739738414550,0.8331,2679.4,2679.2,3.73245]
[1739738414789,0.8331,2679.4,2679.1,7.46503]
[1739738415071,0.8331,2679.4,2679.1,3.73251]
[1739738415260,0.8331,2679.4,2678.9,3.73278]
[1739738415463,0.8331,2679.4,2678.9,4.161058]
[1739738416466,0.04665272,2679.3,2678.9,3.73278]
[1739738416646,4.56529,2679.4,2678.9,3.73278]
[1739738417597,0.06041411,2679.3,2678.9,3.73278]
[1739738417797,0.06041411,2679.3,2679.2,3.73245]
[1739738418000,0.8331,2679.6,2679.2,3.73245]
[1739738418293,0.06041411,2679.3,2679.2,3.73245]
[1739738418463,0.8331,2679.6,2679.2,3.73245]
[1739738418662,0.06041411,2679.3,2679.2,3.73245]
[1739738418862,0.8331,2679.6,2679.2,3.73245]
[1739738419057,0.05972125,2679.3,2679.2,3.73245]
[1739738419296,0.8331,2679.6,2679.2,3.73245]
[1739738419466,0.05972125,2679.3,2679.2,3.73245]
[1739738419664,0.8331,2679.6,2679.2,3.73245]
[1739738419883,0.8331,2679.6,2679.4,3.73214]
[1739738420090,0.05974464,2679.5,2679.4,3.73214]
[1739738420387,4.56466,2679.9,2679.4,3.73214]
[1739738420601,0.06008653,2679.5,2679.4,3.73214]
[1739738420789,4.56466,2679.9,2679.4,3.73214]
[1739738421005,0.06008653,2679.5,2679.4,3.73214]
[1739738421217,0.8331,2679.9,2679.5,3.7319]
[1739738421395,0.8331,2679.9,2679.6,3.73179]
[1739738421826,0.8331,2679.9,2679.4,0.8286894]
[1739738422125,4.56463,2679.9,2679.4,3.73204]
[1739738422619,3.73171,2679.8,2679.3,3.73221]
[1739738423193,3.77835782,2679.8,2679.3,3.73221]
[1739738423393,3.73171,2679.8,2679.3,3.73221]
[1739738423679,3.0,2680.1,2679.1,3.7325]
[1739738423680,0.8331,2679.5,2679.1,3.7325]
[1739738425907,0.7681,2679.2,2678.2,3.73375]
[1739738426222,0.7681,2678.6,2678.1,3.73398]
[1739738426800,0.7681,2678.6,2677.9,3.73414]
[1739738427003,0.7681,2678.6,2677.5,13.36325572]
[1739738427004,3.73397,2678.2,2677.3,5.25834387]
[1739738427215,3.73397,2678.2,2677.3,3.73501]
[1739738427216,4.50223,2678.0,2677.3,3.73501]
[1739738427437,0.7681,2678.0,2677.3,3.73501]
[1739738427636,3.73441,2677.8,2677.3,3.73501]
[1739738427842,3.73441,2677.8,2677.1,3.73534]
[1739738428119,3.73438,2677.9,2677.3,3.7351]
[1739738429158,3.73436,2677.9,2677.3,3.7351]
[1739738431550,3.73436,2677.9,2677.3,3.73499]
[1739738431769,3.73427,2677.9,2677.3,3.73499]
[1739738432421,0.05806411,2677.8,2677.3,3.73499]
[1739738432722,3.86764106,2677.8,2677.1,7.927384]
[1739738432922,0.7681,2677.5,2677.1,3.73528]
[1739738433122,0.7681,2677.5,2676.9,4.56765]
[1739738433354,0.13255806,2677.4,2677.1,3.73535]
[1739738435030,0.13255806,2677.4,2677.2,3.73522]
[1739738435455,0.13255806,2677.4,2677.2,3.73514]
[1739738436740,0.13255806,2677.4,2677.2,3.73514]
[1739738437191,0.13255806,2677.4,2677.0,3.73544]
[1739738437493,0.13255806,2677.4,2677.1,3.73531]
[1739738438085,0.13255806,2677.4,2677.2,3.7352]
[1739738438792,0.13255806,2677.4,2677.3,3.7351]
[1739738438990,4.50251,2677.8,2677.2,3.7352]
[1739738439169,0.13181467,2677.4,2677.2,3.7352]
[1739738439694,8.23702,2677.8,2677.2,3.7352]
[1739738439856,0.13180148,2677.3,2677.2,3.7352]
[1739738440056,0.7681,2677.8,2677.6,3.73457]
[1739738440371,5.34,2678.2,2677.9,3.73418]
[1739738440689,0.8299,2678.4,2677.9,3.73416]
[1739738441195,4.56348,2678.4,2677.9,3.73416]
[1739738441390,3.73309,2678.8,2678.2,3.73371]
[1739738441608,1.203209,2678.7,2678.3,3.73362]
[1739738441779,1.203209,2678.7,2678.4,3.73351]
[1739738441980,1.203209,2678.7,2678.3,3.73362]
[1739738442273,0.8299,2678.7,2678.3,3.73362]
[1739738443687,4.56309,2678.7,2678.1,3.7339]
[1739738444002,4.56309,2678.7,2678.1,7.46781]
[1739738444365,4.56309,2678.7,2678.2,3.73383]
[1739738445406,0.8299,2678.7,2678.2,3.73383]
[1739738445904,4.56305,2678.7,2678.1,3.7339]
[1739738446418,0.8299,2678.7,2678.2,3.73374]
[1739738446589,4.56313,2678.7,2678.1,7.91943]
[1739738447019,4.56313,2678.7,2678.2,3.73384]
[1739738447518,0.1273291,2678.6,2678.2,3.73384]
[1739738447729,0.1273291,2678.6,2678.1,4.18553]
[1739738447897,0.1273291,2678.6,2678.2,4.152403]
[1739738448088,0.1273291,2678.6,2678.1,7.4678]
[1739738448289,0.1273291,2678.6,2678.1,3.73389]
[1739738448490,0.1273291,2678.6,2678.2,3.73381]
[1739738448901,0.1273291,2678.6,2678.1,3.73389]
[1739738449226,0.1273291,2678.6,2678.2,3.73378]
[1739738450292,0.1273291,2678.6,2678.2,3.73385]
[1739738450496,3.8606391,2678.6,2678.1,7.46776]
[1739738450726,3.8606391,2678.6,2678.1,3.73386]
[1739738450895,3.8606391,2678.6,2678.2,3.73383]
[1739738451096,3.8606391,2678.6,2678.1,7.46776]
[1739738452929,0.1273291,2678.6,2678.2,3.73374]
[1739738453088,0.1273291,2678.6,2678.3,3.73364]
[1739738453932,0.1273291,2678.6,2678.2,3.73377]
[1739738456632,3.8606891,2678.6,2678.2,3.73377]
[1739738457331,3.8606891,2678.6,2678.1,4.559006]
[1739738457643,3.8606891,2678.6,2678.2,3.73381]
[1739738458433,0.1273291,2678.6,2678.3,3.73363]
[1739738460039,0.1273291,2678.6,2678.5,3.73343]
[1739738460207,0.1273291,2678.6,2677.9,0.7825]
[1739738460408,0.1273291,2678.6,2678.3,3.73362]
[1739738460734,0.1273291,2678.6,2678.1,7.46779]
[1739738460735,3.8606791,2678.6,2678.1,7.46779]
[1739738460901,3.8606791,2678.6,2678.1,3.73388]
[1739738461102,3.8606791,2678.6,2678.1,7.4678]
[1739738461734,0.1273291,2678.6,2678.3,3.73367]
[1739738461897,0.1273291,2678.6,2678.3,3.73371]
[1739738462500,0.1273291,2678.6,2678.1,3.73388]
[1739738462738,4.56314,2678.7,2678.2,3.73378]
[1739738462932,0.12333475,2678.6,2678.2,3.73378]
[1739738463235,0.12333475,2678.6,2678.3,3.73364]
[1739738464106,0.12333475,2678.6,2678.1,4.185518]
[1739738464308,0.8299,2678.7,2678.3,3.73371]
[1739738464606,0.12333475,2678.6,2678.3,3.73371]
[1739738465013,0.12333475,2678.6,2678.4,3.73351]
[1739738465216,0.12333475,2678.6,2678.5,3.73343]
[1739738465416,0.7927,2679.3,2679.0,3.73265]
[1739738465822,0.11897267,2679.2,2679.0,3.73264]
[1739738466005,0.7927,2679.3,2678.8,3.73291]
[1739738466205,0.11455557,2679.1,2678.8,7.46585]
[1739738466413,3.73247,2679.2,2678.7,3.73307]
[1739738466744,0.7927,2679.0,2678.4,9.54185387]
[1739738466930,0.11452922,2678.9,2678.4,9.54178387]
[1739738467127,0.11452922,2678.9,2678.5,3.73336]
[1739738467437,0.11452922,2678.9,2678.7,3.73313]
[1739738468778,0.11452922,2678.9,2678.5,4.68753039]
[1739738468914,0.11452922,2678.9,2678.5,3.73336]
[1739738469546,0.11452922,2678.9,2678.5,3.73334]
[1739738469975,0.11452922,2678.9,2678.6,3.73321]
[1739738471248,0.11452922,2678.9,2678.5,3.73334]
[1739738473137,0.11452922,2678.9,2678.5,7.46668]
[1739738473637,0.11452922,2678.9,2678.5,3.73334]
[1739738473834,0.11452922,2678.9,2678.5,7.46669]
[1739738474056,0.11452922,2678.9,2678.5,3.73334]
[1739738474240,0.11452922,2678.9,2678.5,7.46669]
[1739738475051,0.11452922,2678.9,2678.5,3.73334]
[1739738475428,0.11452922,2678.9,2678.5,7.46669]
[1739738475628,0.11452922,2678.9,2678.6,3.73327]
[1739738475828,3.84745922,2678.9,2678.4,8.99190387]
[1739738476030,0.8044,2678.7,2678.4,5.25834387]
[1739738476225,4.53761,2678.7,2678.4,5.25834387]
[1739738476434,0.11448968,2678.6,2678.4,5.25834387]
[1739738477558,0.11448968,2678.6,2678.3,3.73364]
[1739738478065,0.11448968,2678.6,2678.5,3.73343]
[1739738478364,0.8044,2678.9,2678.5,4.53573]
[1739738478665,0.8044,2678.9,2678.6,3.73315]
[1739738480774,9.07239,2679.3,2678.7,3.73301]
[1739738480927,9.07239,2679.3,2678.8,3.73301]
[1739738480928,0.8044,2679.2,2678.8,3.73301]
[1739738481333,4.53689,2679.2,2678.7,3.73301]
[1739738481771,3.73269,2679.1,2678.5,4.5356]
[1739738481966,3.73269,2679.1,2678.6,3.73325]
[1739738482167,3.73281,2679.0,2678.5,3.73342]
[1739738482346,0.8044,2678.9,2678.5,3.73342]
[1739738482954,0.8044,2678.9,2678.5,3.73343]
[1739738483641,0.8044,2678.9,2678.6,3.73327]
[1739738483845,0.8044,2678.9,2678.5,3.73342]
[1739738485668,0.8044,2678.9,2678.6,3.73327]
[1739738486438,0.8044,2678.9,2678.5,3.73341]
[1739738487662,0.8044,2678.9,2678.4,8.99181387]
[1739738487663,0.8044,2678.9,2678.6,3.73322]
[1739738488265,0.8044,2678.9,2678.4,8.99183387]
[1739738488464,0.8044,2678.9,2678.5,3.73341]
[1739738492411,0.11462312,2678.8,2678.5,3.73341]
[1739738495368,0.11462312,2678.8,2678.6,3.73321]
[1739738496166,0.11462312,2678.8,2678.5,3.73341]
[1739738496659,0.11462312,2678.8,2678.6,3.73325]
[1739738498110,0.11462312,2678.8,2678.5,3.7334]
[1739738498865,0.11462312,2678.8,2678.6,3.73328]
[1739738500099,0.11462312,2678.8,2678.5,3.73342]
[1739738500984,0.11462312,2678.8,2678.4,5.25834387]
[1739738501216,0.7615,2678.6,2678.4,5.25834387]
[1739738501393,0.7615,2678.6,2678.3,3.7336]
[1739738501723,0.11463286,2678.5,2678.3,3.7336]
[1739738502219,0.11463286,2678.5,2678.3,7.46723]
[1739738502396,0.11463286,2678.5,2678.3,3.7336]
[1739738503450,0.11463286,2678.5,2678.2,3.73384]
[1739738503817,0.11463286,2678.5,2678.3,3.73364]
[1739738504148,0.11463286,2678.5,2678.3,7.46727]
[1739738504348,0.11463286,2678.5,2678.3,3.73363]
[1739738504941,0.7615,2678.6,2678.3,3.73363]
[1739738505240,0.11463286,2678.5,2678.3,3.73363]
[1739738505444,0.11463286,2678.5,2678.3,4.4229319]
[1739738505747,0.11463286,2678.5,2678.4,3.73357]
[1739738506255,0.11463286,2678.5,2678.3,4.4229319]
[1739738506945,0.11463286,2678.5,2678.4,3.73357]
[1739738508210,0.11463286,2678.5,2678.3,4.4229319]
[1739738510360,0.11463286,2678.5,2678.3,8.1565719]
[1739738510665,0.11463286,2678.5,2678.3,4.4229319]
[1739738511662,0.11463286,2678.5,2678.4,0.44229319]
[1739738511864,3.73282,2679.0,2678.5,3.73331]
[1739738512022,3.73288,2678.9,2678.5,3.73331]
[1739738512357,3.73288,2678.9,2678.1,1.56605571]
[1739738512358,5.34,2678.5,2678.1,1.56605571]
[1739738512721,5.34,2678.5,2678.3,3.73371]
[1739738513623,5.34,2678.5,2678.4,3.73357]
[1739738515765,5.34,2678.5,2678.2,3.7338]
[1739738516133,8.82,2678.4,2678.2,3.7338]
[1739738516333,8.82,2678.6,2678.2,3.7338]
[1739738516530,4.51505,2678.5,2678.0,3.73403]
[1739738516730,4.51505,2678.5,2678.1,3.73389]
[1739738516731,0.7816,2678.5,2678.1,3.73389]
[1739738518970,0.7816,2678.5,2678.0,3.73411]
[1739738519349,0.7816,2678.5,2678.1,3.73398]
[1739738519548,1.5200409,2678.4,2678.1,3.73398]
[1739738520483,1.5200409,2678.4,2678.1,3.7339]
[1739738520649,0.7816,2678.5,2678.2,3.73382]
[1739738520851,0.7816,2678.5,2678.1,3.7339]
[1739738521174,0.7816,2678.5,2678.0,3.73406]
[1739738521585,0.7816,2678.5,2678.1,3.73388]
[1739738522048,14.16,2678.4,2678.1,3.73388]
[1739738522230,14.27457489,2678.4,2678.1,3.73388]
[1739738522630,14.27457489,2678.4,2678.0,3.73412]
[1739738523073,16.71342228,2678.4,2678.0,3.73412]
[1739738526121,0.7816,2678.2,2677.7,3.73447]
[1739738526418,0.11449055,2678.1,2677.7,3.73447]
[1739738526918,0.11449055,2678.1,2677.9,3.73416]
[1739738527224,0.11449055,2678.1,2678.0,4.53042]
[1739738527418,14.16,2678.3,2678.0,4.53042]
[1739738527738,14.16,2678.3,2678.2,3.73385]
[1739738527949,14.16,2678.3,2678.2,4.53015]
[1739738531137,14.16,2678.3,2678.1,3.73399]
[1739738531292,1.5913031,2678.2,2677.9,3.73419]
[1739738531487,2.3776031,2678.2,2677.9,3.73419]
[1739738531793,2.3776031,2678.2,2678.0,3.73411]
[1739738532766,1.59206044,2678.1,2678.0,3.73411]
[1739738533266,0.7863,2678.2,2678.0,3.73411]
[1739738534427,10.42589,2678.1,2677.7,0.7887]
[1739738534630,10.42589,2678.1,2677.8,3.73428]
[1739738534859,10.42589,2678.1,2677.9,3.73426]
[1739738535981,10.42589,2678.1,2677.9,3.73418]
[1739738536153,10.42589,2678.1,2678.0,3.73412]
[1739738537278,10.53210388,2678.1,2678.0,4.52282]
[1739738537774,10.53210388,2678.1,2678.0,5.348527]
[1739738538074,10.53210388,2678.1,2678.0,5.898527]
[1739738539531,10.53210388,2678.1,2678.0,4.52282]
[1739738547320,10.53210388,2678.1,2678.0,3.73412]
[1739738548223,10.53210388,2678.1,2677.9,3.73425]
[1739738549150,10.53210388,2678.1,2677.9,3.73418]
[1739738549619,10.53210388,2678.1,2678.0,3.73412]
[1739738550931,10.53210388,2678.1,2678.0,4.55182]
[1739738551222,10.53210388,2678.1,2678.0,5.38042]
[1739738551530,10.53210388,2678.1,2678.0,4.55182]
[1739738552630,10.53210388,2678.1,2678.0,3.73412]
[1739738554292,10.42589,2678.1,2678.0,4.55182]
[1739738554505,10.5247292,2678.1,2678.0,7.55182]
[1739738554788,10.5247292,2678.1,2678.0,9.23042]
[1739738555605,1.1897292,2678.1,2678.0,9.23042]
[1739738555791,1.1897292,2678.1,2678.0,9.49642]
[1739738555987,1.09089,2678.1,2678.0,9.49642]
[1739738559637,3.90816636,2679.1,2678.6,0.8301]
[1739738559838,14.16,2679.0,2678.9,3.7328]
[1739738560037,14.2524701,2679.0,2678.9,3.7328]
[1739738560648,14.2524701,2679.0,2678.8,3.733]
[1739738563110,14.2524701,2679.0,2678.9,3.73287]
[1739738563443,0.0924701,2679.0,2678.8,3.733]
[1739738564340,0.0924701,2679.0,2678.9,3.73287]
[1739738565346,0.0924701,2679.0,2678.9,4.51678123]
[1739738565347,8.9124701,2679.0,2678.9,4.51678123]
[1739738565501,8.9124701,2679.0,2678.9,5.309557]
[1739738570025,9.4624701,2679.0,2678.9,5.309557]
[1739738575873,9.4624701,2679.0,2678.9,5.859557]
[1739738581139,9.4624701,2679.0,2678.9,5.029457]
[1739738592299,9.4624701,2679.0,2678.9,4.28287]
[1739738594096,9.4624701,2679.0,2678.9,3.73287]
[1739738594297,0.7996,2678.9,2678.6,3.7332]
[1739738594500,0.7996,2678.9,2678.7,3.73315]
[1739738594700,0.08298298,2678.8,2678.7,3.73315]
[1739738596686,0.08298298,2678.8,2678.6,3.7332]
[1739738596926,0.08298298,2678.8,2678.6,7.46641]
[1739738597139,0.08298298,2678.8,2678.2,4.52438]
[1739738597140,0.7996,2678.7,2678.4,3.73344]
[1739738597342,0.08276914,2678.6,2678.4,3.73344]
[1739738597511,0.7996,2678.5,2678.4,3.73344]
[1739738597708,9.70235596,2678.5,2678.4,3.73344]
[1739738598846,9.70235596,2678.5,2678.3,3.7337]
[1739738599143,0.7996,2678.3,2678.1,7.46785]
[1739738599342,0.08258051,2678.2,2678.1,3.73391]
[1739738599498,0.7996,2678.3,2678.1,3.73391]
[1739738599699,0.08258051,2678.2,2678.1,3.73391]
[1739738599899,0.7996,2678.3,2677.7,1.3406]
[1739738599900,0.7996,2678.3,2678.0,3.73411]
[1739738600099,0.08258051,2678.2,2678.1,3.73399]
[1739738600388,0.7996,2678.3,2678.1,3.73399]
[1739738600506,0.7996,2678.3,2678.2,3.73385]
[1739738600708,9.6196,2678.3,2678.2,3.73385]
[1739738602016,9.6196,2678.3,2678.1,7.46779]
[1739738602818,9.6196,2678.3,2678.2,3.73385]
[1739738603812,8.82,2678.3,2678.2,3.73385]
[1739738605245,0.7998,2678.3,2678.2,3.73385]
[1739738606415,0.7998,2678.3,2678.1,3.73389]
[1739738606620,0.7998,2678.3,2678.1,7.46779]
[1739738606841,0.7998,2678.3,2678.1,3.73389]
[1739738607162,0.7998,2678.3,2678.1,7.46779]
[1739738607718,0.7998,2678.3,2678.1,3.73389]
[1739738608046,0.7998,2678.3,2678.2,3.73385]
[1739738611136,9.6198,2678.3,2678.2,3.73385]
[1739738612360,9.70201766,2678.3,2678.2,3.73385]
[1739738614559,9.70201766,2678.3,2678.1,3.73389]
[1739738615151,9.70201766,2678.3,2678.1,7.4678]
[1739738616003,9.70201766,2678.3,2678.1,3.73389]
[1739738616205,9.70201766,2678.3,2678.2,3.73385]
[1739738616582,9.70201766,2678.3,2678.1,3.73389]
[1739738616769,9.70201766,2678.3,2678.1,7.46778]
[1739738617078,8.82,2678.2,2678.1,7.46778]
[1739738617389,8.82,2678.2,2678.1,3.73389]
[1739738617390,8.90220982,2678.2,2678.1,3.73389]
[1739738623425,8.90220982,2678.2,2678.1,4.48069]
[1739738629113,14.24220982,2678.2,2678.1,4.48069]
[1739738633442,14.24220982,2678.2,2678.1,3.73389]
[1739738638535,14.24220982,2678.2,2677.2,5.32697026]
[1739738638536,0.7735,2678.0,2677.6,3.73466]
[1739738638734,0.7735,2677.7,2677.4,7.46973]
[1739738638937,1.59186026,2677.5,2677.4,7.46973]
[1739738639137,1.67084101,2677.5,2677.4,7.46973]
[1739738640167,1.67084101,2677.5,2677.4,8.216703]
[1739738640325,0.07898075,2677.5,2677.4,8.216703]
[1739738640528,2.36536026,2677.7,2677.4,4.481833]
[1739738640752,2.36536026,2677.7,2677.6,3.73468]
[1739738641269,15.75186026,2677.9,2677.8,3.7344]
[1739738641453,14.16,2677.9,2677.8,3.7344]
[1739738641861,14.16,2677.9,2677.8,4.5379]
[1739738642057,14.16,2677.9,2677.8,5.365143]
[1739738642367,14.23903351,2677.9,2677.8,5.365143]
[1739738655458,14.23903351,2677.9,2677.8,4.561643]
[1739738656658,14.23903351,2677.9,2677.8,3.7344]
[1739738656893,0.8086,2677.8,2677.5,3.73475]
[1739738657062,0.8086,2677.8,2677.5,7.46949]
[1739738657265,0.07887568,2677.7,2677.5,7.46949]
[1739738657485,0.8086,2677.8,2677.5,3.73474]
[1739738657677,0.07886919,2677.6,2677.5,3.73474]
[1739738657991,0.8086,2677.5,2677.3,3.735]
[1739738658296,14.16,2677.4,2677.1,3.7353]
[1739738658600,14.9686,2677.3,2677.0,3.73542]
[1739738658893,15.04711752,2677.3,2677.0,3.73542]
[1739738660163,15.04711752,2677.3,2677.1,3.73534]